Cogmind - Beta 13 @@@ ROGUE MODE // 2024.04.14 @ 13:55:36 Player: paplal Result: Destroyed by G-47 Trooper with Particle Gun Performance ------------- Evolutions (0) 0 Regions Visited (2) 400 Robots Destroyed (14) 70 Value Destroyed (274) 274 Prototype IDs (0) 0 Alien Tech Used (0) 0 Bonus (-9) -9 TOTAL SCORE: 735 Bonus ------- Follower Combat Kills 14 Friendly Fire -23 Cogmind --------- Core Integrity 0/250 Matter 290/300 Energy 150/150 System Corruption 2% Temperature Cool (40) Movement Walking (120) Location -10/Mines Parts ------- > --- POWER (1) -------- Light Angular Momentum Engine > --- PROPULSION (2) --- Aluminum Leg Aluminum Leg > --- UTILITY (2) ------ Small Storage Unit Improved Terrain Scanner > --- WEAPON (2) ------- Light Assault Rifle > --- INVENTORY (8) ---- Light Ion Engine Light Ion Engine Light Nuclear Core Light Treads Light Treads Aluminum Leg Heat Sink Heat Sink Peak State ------------ > --- POWER ------------ Light Angular Momentum Engine > --- PROPULSION ------- Aluminum Leg Aluminum Leg > --- UTILITY ---------- Small Storage Unit Improved Terrain Scanner > --- WEAPON ----------- Light Assault Rifle > --- INVENTORY -------- Light Ion Engine Light Ion Engine Light Nuclear Core Light Treads Light Treads Aluminum Leg Heat Sink Heat Sink [Rating: 13] Favorites ----------- Power Ion Engine Engine Ion Engine Propulsion Aluminum Leg Leg Aluminum Leg Wheel Wheel Utility Small Storage Unit Device Improved Terrain Scanner Storage Small Storage Unit Weapon Light Assault Rifle Energy Gun Medium Laser Ballistic Gun Light Assault Rifle Build | -11 -10 -10 ------- Run | Yrd Mat Min Slots Evolved . | . . . Power . | . . . Propulsion . | . . . Utility . | . . . Weapon . | . . . Parts Attached 11 | 7 3 1 Power 2 | 1 . 1 Engine 2 | 1 . 1 Core . | . . . Reactor . | . . . Propulsion 4 | 2 2 . Treads . | . . . Leg 2 | . 2 . Wheel 2 | 2 . . Hover . | . . . Flight . | . . . Utility 2 | 2 . . Device 1 | 1 . . Storage 1 | 1 . . Processor . | . . . Hackware . | . . . Protection . | . . . Artifact . | . . . Weapon 3 | 2 1 . Energy Gun 1 | . 1 . Energy Cannon . | . . . Ballistic Gun 2 | 2 . . Ballistic Cannon . | . . . Launcher . | . . . Special Weapon . | . . . Impact Weapon . | . . . Slashing Weapon . | . . . Piercing Weapon . | . . . Special Melee Weapon . | . . . Unidentified Prototypes . | . . . Parts Lost 2 | . . 2 Power 1 | . . 1 Propulsion . | . . . Utility . | . . . Weapon 1 | . . 1 Highest Loss Streak 2 | . . 2 To Critical Strikes . | . . . Average Slot Usage (%) 94 | . 100 92 Engine 13 | . 14 13 Leg 24 | . 14 28 Wheel 3 | . 14 . Device 14 | . 14 14 Storage 14 | . 14 14 Energy Gun 7 | . 6 7 Ballistic Gun 16 | . 21 14 Naked Turns . | . . . Heaviest Build 16 | 13 14 16 Greatest Support 20 | 20 20 20 Greatest Overweight (x) . | . . . Average Overweight (x) . | . . . Largest Inventory Capacity 8 | 8 8 8 Average Capacity 7 | 7 8 8 Most Carried 8 | 7 8 8 Average Carried 7 | 5 7 7 Final Capacity 8 | 8 8 8 Final Carried 8 | 6 7 8 Class Distribution -------------------- 100% | Mutant Dominant Class ---------------- Mutant | -10/Materials Mutant | -10/Mines Resources | -11 -10 -10 ----------- Run | Yrd Mat Min Matter Collected 404 | 316 42 46 Remotely . | . . . Salvage Created 433 | 129 87 217 Parts 31 | 6 7 18 Haulers Intercepted . | . . . Recyclers Shooed 2 | . . 2 Parts Field Recycled . | . . . Retrieved Matter . | . . . Parts Self-Destructed . | . . . Prevented . | . . . Kills | -11 -10 -10 ------- Run | Yrd Mat Min Combat Hostiles Destroyed 7 | . 2 5 Guns 6 | . 2 4 Classes Destroyed 6 | 3 2 1 Worker 2 | 1 . 1 Builder 1 | . 1 . Tunneler 3 | 3 . . Recycler 1 | 1 . . Swarmer 1 | . . 1 Grunt 6 | . 2 4 Best Kill Streak 3 | 3 2 3 Combat Bots Only 3 | . 2 3 Max Kills in Single Turn 1 | 1 1 1 Gunslinging . | . . . Exploded . | . . . Melee . | . . . Uniques/NPCs Destroyed . | . . . Combat | -11 -10 -10 -------- Run | Yrd Mat Min Hostile Shots Fired 72 | . 10 62 Missed 26 | . 6 20 Damage Taken 574 | . 43 531 Core 259 | . 23 236 Absorbed by Shields . | . . . Core Remaining (%) 100 | 100 . . Volleys Fired 75 | 23 11 41 Largest 2 | 2 2 2 Hottest 70 | 40 40 70 Shots Fired 130 | 46 22 62 Gun 130 | 46 22 62 Cannon . | . . . Launcher . | . . . Special . | . . . Kinetic 104 | 46 22 36 Thermal 26 | . . 26 Explosive . | . . . Electromagnetic . | . . . Robot Hit Streak 17 | 17 8 11 Robot Miss Streak 3 | 2 2 3 Penetration Max . | . . . Secondary Targets 1 | . . 1 Max Gunslinging Chain 1 | . . 1 Shots Hit Robots 94 | 35 15 44 Core Hits 34 | 9 8 17 Critical Kills . | . . . Critical Parts Destroyed 1 | 1 . . Critical Strikes 2 | 1 . 1 Burn 1 | . . 1 Destroy 1 | 1 . . Melee Attacks . | . . . Impact . | . . . Slashing . | . . . Piercing . | . . . Sneak Attacks . | . . . Combat Hostiles . | . . . Follow-up Attacks . | . . . Damage Inflicted 846 | 283 128 435 Guns 846 | 283 128 435 Cannons . | . . . Explosions . | . . . Melee . | . . . Ramming . | . . . Kinetic 631 | 283 128 220 Thermal 215 | . . 215 Explosive . | . . . Electromagnetic . | . . . Impact . | . . . Slashing . | . . . Piercing . | . . . Highest Corruption 2 | . 2 2 Average Corruption 2 | . 2 2 Corruption Purged . | . . . Corruption Blocked . | . . . Effects 2 | . . 2 Energy Discharges 1 | . . 1 Data Loss (minor) 1 | . . 1 Overload Shots . | . . . Overflow Damage . | . . . Projectiles . | . . . Explosions . | . . . Melee . | . . . Knockbacks . | . . . Impact . | . . . Kinetic . | . . . Secondary . | . . . Self-Inflicted Damage . | . . . Shots . | . . . Rammed . | . . . Targets Rammed . | . . . Kicked . | . . . Crushed . | . . . Highest Temperature 448 | . 6 448 Average Temperature 149 | . 6 156 Received Heat Transfer 321 | . 24 297 Effects 4 | . . 4 Shutdowns 1 | . . 1 Interference 2 | . . 2 Damage (major) 1 | . . 1 Siege Activations . | . . . Robots Corrupted . | . . . Combat Hostiles . | . . . Parts Fried . | . . . Impact Corruptions . | . . . Robots Melted 1 | . . 1 Combat Hostiles 1 | . . 1 Parts Melted . | . . . Heat Transferred 703 | . . 703 Parts Sabotaged . | . . . Parts Stolen . | . . . Parts Stripped . | . . . Power Chain Reactions . | . . . Alert | -11 -10 -10 ------- Run | Yrd Mat Min Peak Influence 153 | 25 71 153 Initial 27 | . 16 27 Average 55 | 11 48 71 Maximum Alert Level . | . . . Low Security (%) 100 | 100 100 100 Level 1 . | . . . Level 2 . | . . . Level 3 . | . . . Level 4 . | . . . Level 5 . | . . . High Security . | . . . Max Security . | . . . Squads Dispatched 1 | . 1 . Investigation . | . . . Extermination . | . . . Reinforcement 1 | . 1 . Assault . | . . . Garrison . | . . . Intercept . | . . . Searches Triggered . | . . . Construction Impeded . | . . . Haulers Reinforced . | . . . Active Scanning Responses . | . . . Cargo Convoy Interrupts . | . . . Stealth | -11 -10 -10 --------- Run | Yrd Mat Min Distress Signals 1 | . 1 . Communications Jammed . | . . . Distress Signals . | . . . Times Spotted 13 | . 4 9 Peak Tracking Total 3 | . 3 3 Tactical Retreats . | . . . Traps | -11 -10 -10 ------- Run | Yrd Mat Min Traps Triggered 1 | . 1 . Indirectly . | . . . Trap Hack Attempts . | . . . Triggered . | . . . Disarmed . | . . . Reprogrammed . | . . . Reused . | . . . Traps Extracted . | . . . Installed . | . . . Triggered . | . . . Machines | -11 -10 -10 ---------- Run | Yrd Mat Min Machines Disabled . | . . . Max in Single Turn . | . . . Machines Repaired . | . . . Machines Dismantled . | . . . Machines Sabotaged . | . . . Overloaded Fab Kills . | . . . Hacking | -11 -10 -10 --------- Run | Yrd Mat Min Machines Accessed 3 | . 3 . Terminals 3 | . 3 . Fabricators . | . . . Repair Stations . | . . . Recycling Units . | . . . Scanalyzers . | . . . Garrison Access . | . . . Total Hacks 7 | . 7 . Successful 2 | . 2 . Failed 5 | . 5 . Catastrophic 2 | . 2 . Database Lockouts . | . . . Manual . | . . . Terminals 7 | . 7 . Fabricators . | . . . Repair Stations . | . . . Recycling Units . | . . . Scanalyzers . | . . . Garrison Access . | . . . Terminal Hacks 2 | . 2 . Alert Level 1 | . 1 . Dispatch Records 1 | . 1 . Fabricator Hacks . | . . . Repair Station Hacks . | . . . Recycling Unit Hacks . | . . . Scanalyzer . | . . . Garrison Access Hacks . | . . . Unauthorized Hacks . | . . . Terminals . | . . . Fabricators . | . . . Repair Stations . | . . . Recycling Units . | . . . Scanalyzers . | . . . Garrison Access . | . . . Data Cores Recovered . | . . . Used . | . . . Hacking Detections 3 | . 3 . Full Trace Events 1 | . 1 . Feedback Events . | . . . Feedback Blocked . | . . . Robot Schematics Acquired . | . . . Robots Built . | . . . Authchips . | . . . Time . | . . . Total Robot Build Rating . | . . . Part Schematics Acquired . | . . . Parts Built . | . . . Authchips . | . . . Time . | . . . Total Part Build Rating . | . . . Parts Repaired . | . . . Time . | . . . Parts Recycled . | . . . Recycled Matter . | . . . Retrieved Matter . | . . . Retrieved Components . | . . . Parts Scanalyzed . | . . . Part Schematics Acquired . | . . . Parts Damaged . | . . . Bothacking | -11 -10 -10 ------------ Run | Yrd Mat Min Used RIF Installer . | . . . Robots Hacked . | . . . Non-combat . | . . . Combat . | . . . Robot Hacks Applied . | . . . Relay Couplers Released . | . . . Fabnet Peak Effective % . | . . . Robots Rewired . | . . . Allies Hacked . | . . . Hacks Repelled . | . . . Allies | -11 -10 -10 -------- Run | Yrd Mat Min Total Allies 2 | . . 2 Largest Group 2 | . . 2 Highest-Rated Group 46 | . . 46 Highest-Rated Ally 31 | . . 31 Total Orders . | . . . Ally Attacks 6 | . . 6 Total Damage 107 | . . 107 Kills 2 | . . 2 Allies Corrupted . | . . . Allies Melted . | . . . Intel | -11 -10 -10 ------- Run | Yrd Mat Min Robot Analysis Total . | . . . Derelict Logs Recovered 1 | . . 1 Drone Launches . | . . . Drone Recoveries . | . . . Exploration | -11 -10 -10 ------------- Run | Yrd Mat Min Turns Passed 817 | 149 185 483 Spaces Moved 563 | 93 150 320 Core 12 | 12 . . Treads . | . . . Legs 391 | . 71 320 Wheels 160 | 81 79 . Hover . | . . . Flight . | . . . Fastest Speed 50 | 50 80 120 Average Speed 107 | 76 98 120 Slowest Speed 120 | 80 120 120 Overloaded Moves . | . . . Propulsion Burnouts . | . . . Robots Hopped . | . . . Cave-ins Triggered . | . . . Exploration Rate (%) 32 | 7 30 59 Regions Visited 2 Branch Regions 1 Pre-discovered Areas 1 | . . 1 Known Exits Taken . | . . . Unknown Exits Taken 2 | 1 1 . Scrap Searched . | . . . Spaces Dug . | . . . Terrain Destroyed . | . . . Melee . | . . . Projectile . | . . . AOE . | . . . Terrain Rammed . | . . . Walls Destroyed . | . . . Machines Disabled . | . . . Actions | -11 -10 -10 --------- Run | Yrd Mat Min Total 667 | 132 170 365 Wait . | . . . Move 561 | 92 149 320 Hop . | . . . Pick Up 16 | 10 4 2 Fast Attach 4 | 3 . 1 Attach 7 | 4 3 . Detach . | . . . Swap . | . . . Drop 4 | . 3 1 Fire 75 | 23 11 41 Melee . | . . . Ram . | . . . Kick . | . . . Crush . | . . . Escape Stasis . | . . . Rewire . | . . . Trap . | . . . Miscellaneous . | . . . Route ------- -11/Scrapyard -10/Materials -10/Mines History --------- Turn | Location | Event 11 | -11/Scrapyard | Discovered new exit (range 16) 150 | -11/Scrapyard | Entered Materials 296 | -10/Materials | Discovered new exit (range 16) 317 | -10/Materials | Build established: Mutant 335 | -10/Materials | Entered Mines 462 | -10/Mines | Learned location of Zion (-7) 598 | -10/Mines | Core integrity fell below 50% 608 | -10/Mines | Core integrity fell below 20% 818 | -10/Mines | Destroyed by G-47 Trooper with Particle Gun Last Messages --------------- 00608_ Switching to secondary target: G-34 Mercenary. 00609_ Power failure, Ion Engine shutdown. 00609_ Acquired 17 matter. 00609_ Med. Laser destroyed. 00611_ Acquired 1 matter. 00615_ Ion Engine destroyed. 00617_ Acquired 1 matter. 00618_ G-34 Mercenary destroyed. 00619_ Acquired 1 matter. 00631_ Acquired Lgt. Angular Momentum Engine. 00638_ Acquired 10 matter. 00640_ Dropped Lgt. Ion Engine. 00641_ Acquired Lgt. Nuclear Core. 00644_ K-01 Serf collects debris. 00711_ System corrupted: Energy discharge (-48). 00735_ K-01 Serf collects debris. 00807_ G-34 Mercenary destroyed. 00811_ K-01 Serf collects debris. 00818_ Critical hit (Burn: +37). Map ----- +----------------------------------------------------+ | | | | | | | | | | | | | | | | | | | | | | | | | | | | | | | ??????????????????????#????????????#?????????????? | | ?????????????#######?????????????????????????????? | | ????????????## ##????????????????????????????? | | ??????????### #??????????#?????????????????? | | ??????#???## #????????????????#???????????? | | ?#####????# ##???#??????#?????#??????????? | | ## ##???# #####????????? = ?????????? | | # #???# ##?????? =%* ??????????? | | #???## ##### !#????????????? | | ##???## g #????????????? | | # ####?##### @ #?????????????? | | # ##?##?## k ##### #?????????????? | | # ##??### ## ##?????????#????????????? | | ## ##???# ######???????????????????????? | | ?### ## ##??# #????#???????????????????????? | | ???###### #??# #????????????????????????????? | | ???#????# ##?# #????#???? ??????????????????? | | ????##??## ### #???????? ???????????????????? | | ??#??????## ## #?????????????#??????????????? | | ##????###### #????????????????????????????? | | ?#?## ##### #????????????????????????????? | | "" #?# #### #####????#???????????????????????? | | "" ### ### #????????????????????????????????? | | "" ## #????????????????????????????????? | | # ### ## ######????? ?????????????????????? | | # #?# #??#????????????????????????? | | ##?# ### #??? ???????????????????????? | | ???# ## ####### #?? ????????????????????????? | | #### ## ##??#??? #???????????????????????????? | | ?## ### ##?#???#?? ??????????????????????????? | | ?#*!* #####????#?????? #???????#?????????????????? | | ?#= = ##????##??#???? #?????????????????????????? | | ##%[[ ####?#?#??? ?????????????????????????????? | | = !%!* ##??????????????????????###?????????????? | | #[##=% =####?#?????????##???? ????????????? | +----------------------------------------------------+ Best States ------------- Heat Dissipation 25 Energy Generation 18 Energy Capacity 250 Matter Stores 300 Matter Capacity 300 Sight Range 16 Terrain Scan Range 16 Terrain Scan Density 10 Evasion (%) 55 Item Schematics ----------------- None Robot Schematics ------------------ None Fabricated ------------ Nothing Alien Tech Used ----------------- None Achievements -------------- None Challenges ------------ None Game ------ Seed DiametricReactiveFalx Manual? 0 Play Time 00:11:06 Cumulative 4.2 hours Start 2024.04.14 @ 13:45:09 End 2024.04.14 @ 13:55:36 Sessions 1 Manual Loads 0 Difficulty Rogue Special Mode None Game No. 6 Rogue 6 Adventurer 0 Explorer 0 Win Type - Total 0 Types 0/0/0/0/0/0/0/0/0 Lore% 1 Gallery% 10 Achievement% 9 Wizard Run 0 Options --------- Layout 2 ASCII 0 Keyboard 0 Movement Mouse Keybinds 0 Fullscreen 1 Font 48/Smallcaps Map View 25x22 Zoom Use 100% Tactical HUD 1 Map Filters NONE Filters NONE Steam 1 RUN: b80b5c08-0971-4bf6-acc0-e87bb6c84d52